bitfinex/quotes_SOLUSD_20250919
["timestamp","ask_amount","ask_price","bid_price","bid_amount"]
[1758293742425,1.44555509,240.5,240.45,26.0]
[1758293742806,0.67,240.49,240.45,26.0]
[1758293743419,2.11555509,240.48,240.45,26.0]
[1758293743608,0.67,240.47,240.43,26.0]
[1758293744028,0.67,240.51,240.44,26.0]
[1758293744208,1.44555509,240.49,240.44,26.0]
[1758293744521,1.44555509,240.49,240.45,26.0]
[1758293744713,0.67,240.48,240.45,26.0]
[1758293745031,0.67,240.54,240.47,1.44555509]
[1758293745216,2.11555509,240.53,240.47,1.44555509]
[1758293745529,2.11555509,240.52,240.46,1.44555509]
[1758293746328,1.44555509,240.54,240.47,5.60397072]
[1758293746503,1.44555509,240.54,240.48,1.44555509]
[1758293746704,1.44555509,240.53,240.45,26.0]
[1758293746917,2.11555509,240.53,240.46,1.44555509]
[1758293747135,1.44555509,240.51,240.45,26.0]
[1758293747303,1.44555509,240.49,240.45,26.0]
[1758293747618,2.11555509,240.48,240.45,26.0]
[1758293748204,1.44555509,240.48,240.45,26.0]
[1758293748612,1.44555509,240.48,240.42,51.01559401]
[1758293748816,2.11555509,240.48,240.42,52.4611491]
[1758293749212,2.11555509,240.48,240.41,0.76]
[1758293749406,2.11555509,240.48,240.41,2.20555509]
[1758293750222,0.67,240.48,240.42,1.44555509]
[1758293750415,2.11555509,240.48,240.41,1.54555509]
[1758293751017,1.44555509,240.48,240.42,1.44555509]
[1758293751826,2.11555509,240.48,240.42,1.44555509]
[1758293752034,0.28432314,240.52,240.45,1.44555509]
[1758293752035,0.95432314,240.52,240.45,1.44555509]
[1758293752335,0.67,240.53,240.45,0.66]
[1758293752634,0.67,240.53,240.48,1.44555509]
[1758293753618,0.67,240.52,240.45,26.66]
[1758293753828,0.67,240.52,240.48,1.44555509]
[1758293754033,0.67,240.52,240.47,1.44555509]
[1758293754438,1.72987823,240.54,240.47,1.44555509]
[1758293754947,0.67,240.52,240.47,1.44555509]
[1758293755442,0.28432314,240.54,240.48,1.44555509]
[1758293756317,0.94432314,240.54,240.48,1.44555509]
[1758293756648,0.66,240.54,240.47,0.66]
[1758293756816,0.94432314,240.54,240.48,1.44555509]
[1758293758340,0.94432314,240.54,240.46,0.66]
[1758293758548,0.94432314,240.54,240.47,1.44555509]
[1758293758841,0.66,240.54,240.48,1.44555509]
[1758293759050,1.72987823,240.56,240.5,1.44555509]
[1758293759253,2.43987823,240.56,240.5,1.44555509]
[1758293759425,2.43987823,240.56,240.49,1.44555509]
[1758293759748,2.43987823,240.56,240.5,1.44555509]
[1758293759749,0.71,240.56,240.5,1.44555509]
[1758293759920,0.71,240.56,240.52,1.44555509]
[1758293760521,0.71,240.56,240.49,4.15817705]
[1758293760522,0.71,240.55,240.51,1.44555509]
[1758293760745,0.71,240.57,240.51,2.10555509]
[1758293760931,0.71,240.59,240.53,1.44555509]
[1758293761130,2.29771666,240.59,240.53,1.44555509]
[1758293761329,0.71,240.62,240.54,1.44555509]
[1758293761533,1.44555509,240.6,240.52,26.0]
[1758293761747,2.25852694,240.6,240.52,26.0]
[1758293761932,0.71,240.59,240.52,4.15765519]
[1758293762137,0.71,240.59,240.53,2.25852694]
[1758293762342,0.71,240.59,240.52,30.81765519]
[1758293762545,2.96852694,240.59,240.53,2.25852694]
[1758293762720,0.71,240.58,240.52,2.25852694]
[1758293762922,0.71,240.58,240.51,29.65780784]
[1758293763126,0.71,240.58,240.53,2.25852694]
[1758293763339,2.96852694,240.6,240.53,2.91852694]
[1758293764366,2.25852694,240.58,240.51,26.0]
[1758293764676,2.25852694,240.58,240.46,28.25852694]
[1758293764677,2.25852694,240.53,240.46,28.25852694]
[1758293764963,2.96852694,240.53,240.48,26.0]
[1758293765135,2.96852694,240.53,240.46,17.75428984]
[1758293765338,2.96852694,240.53,240.46,20.01281678]
[1758293766869,0.71,240.56,240.48,6.4168769]
[1758293767034,2.25852694,240.55,240.48,6.4168769]
[1758293767557,2.25852694,240.54,240.48,6.4168769]
[1758293768135,2.96852694,240.54,240.47,2.91852694]
[1758293769126,2.96852694,240.54,240.47,2.25852694]
[1758293769756,2.96852694,240.54,240.47,6.41695914]
[1758293770734,2.25852694,240.53,240.47,4.1584322]
[1758293771056,2.96852694,240.54,240.47,6.41695914]
[1758293772078,2.96852694,240.54,240.47,2.25852694]
[1758293772367,2.96852694,240.54,240.44,26.0]
[1758293772368,2.25852694,240.48,240.44,26.0]
[1758293772535,2.96852694,240.48,240.44,26.0]
[1758293773243,0.28432314,240.54,240.41,0.1]
[1758293773244,0.71,240.47,240.41,0.1]
[1758293773488,2.25852694,240.43,240.41,0.1]
[1758293773773,2.25852694,240.45,240.41,0.1]
[1758293773962,2.96852694,240.45,240.41,0.1]
[1758293774542,14.74941899,240.52,240.41,0.1]
[1758293774543,2.25852694,240.46,240.41,0.1]
[1758293774748,2.96852694,240.45,240.41,0.1]
[1758293774952,2.96852694,240.44,240.41,0.1]
[1758293775161,2.25852694,240.44,240.41,0.1]
[1758293775380,0.71,240.46,240.41,0.1]
[1758293775555,2.96852694,240.45,240.41,0.1]
[1758293775867,0.71,240.44,240.41,0.1]
[1758293777267,0.28432314,240.51,240.41,0.1]
[1758293777575,2.25852694,240.44,240.41,0.1]
[1758293777755,2.96852694,240.44,240.41,0.1]
[1758293777956,0.71,240.43,240.41,0.1]
[1758293778769,0.71,240.46,240.41,0.1]
[1758293779076,0.71,240.45,240.41,0.1]
[1758293779451,0.71,240.44,240.41,0.1]
[1758293780068,0.99432314,240.48,240.42,0.66]
[1758293780447,0.99432314,240.48,240.42,2.25852694]
[1758293780646,3.25285008,240.48,240.41,6.51796787]
[1758293780868,0.99432314,240.48,240.42,2.25852694]
[1758293781175,0.99432314,240.48,240.42,6.41777806]
[1758293781554,0.71,240.48,240.43,2.25852694]
[1758293781753,2.96852694,240.5,240.43,2.25852694]
[1758293782075,0.71,240.5,240.44,2.25852694]
[1758293782273,0.28432314,240.52,240.47,2.25852694]
[1758293782274,0.71,240.52,240.47,2.25852694]
[1758293782574,0.71,240.52,240.48,2.25852694]
[1758293782772,0.71,240.52,240.45,26.66]
[1758293782773,0.71,240.55,240.49,2.25852694]
[1758293782959,2.25852694,240.55,240.46,0.66]
[1758293783159,0.71,240.54,240.48,2.25852694]
[1758293783547,2.96852694,240.54,240.48,2.25852694]
[1758293783759,0.71,240.54,240.48,2.25852694]
[1758293783956,0.71,240.54,240.49,2.25852694]
[1758293784154,134.25852694,240.56,240.47,4.15852289]
[1758293784375,0.71,240.54,240.49,2.25852694]
[1758293784773,132.71,240.56,240.5,2.25852694]
[1758293785152,132.71,240.56,240.5,6.41652863]
[1758293785375,132.71,240.56,240.51,2.25852694]
[1758293785560,0.71,240.55,240.5,6.41652863]
[1758293785754,0.71,240.54,240.5,6.41652863]
[1758293786251,0.71,240.57,240.51,2.25852694]
[1758293786753,2.96852694,240.57,240.5,2.25852694]
[1758293786956,2.96852694,240.57,240.49,0.66]
[1758293787158,2.96852694,240.57,240.5,2.25852694]
[1758293787375,2.96852694,240.57,240.51,2.25852694]
[1758293787581,2.96852694,240.57,240.49,0.66]
[1758293787892,2.96852694,240.57,240.51,2.25852694]
[1758293788461,2.96852694,240.57,240.5,6.41648003]
[1758293788761,2.25852694,240.56,240.5,6.41648003]
[1758293789493,2.25852694,240.56,240.49,0.66]
[1758293789659,2.25852694,240.56,240.5,2.25852694]
[1758293789855,2.25852694,240.54,240.48,26.0]
[1758293790067,2.25852694,240.51,240.48,26.0]
[1758293790476,2.96852694,240.51,240.47,26.0]
[1758293791265,2.25852694,240.5,240.47,26.0]
[1758293791579,2.25852694,240.48,240.43,13.59559401]
[1758293791879,2.96852694,240.48,240.43,13.59559401]
[1758293792286,2.96852694,240.48,240.42,6.41791467]
[1758293792287,2.25852694,240.47,240.42,4.15938773]
[1758293792587,0.71,240.47,240.43,26.0]
[1758293792956,0.71,240.49,240.43,26.0]
[1758293793267,2.25852694,240.48,240.43,26.66]
[1758293793974,0.71,240.49,240.43,30.8192106]
[1758293794179,2.25852694,240.49,240.43,30.1592106]
[1758293794490,0.71,240.5,240.43,32.41773754]
[1758293794662,2.96852694,240.5,240.43,32.41773754]
[1758293795355,0.71,240.5,240.43,30.1592106]
[1758293795574,2.96852694,240.5,240.44,6.417562]
[1758293795785,2.96852694,240.5,240.44,2.25852694]
[1758293795988,0.71,240.5,240.43,26.0]
[1758293796176,0.71,240.5,240.44,2.25852694]
[1758293796177,2.96852694,240.5,240.44,2.25852694]
[1758293796387,2.96852694,240.5,240.43,28.25852694]
[1758293797781,2.25852694,240.5,240.44,0.66]
[1758293798084,2.25852694,240.48,240.42,15.85412095]
[1758293798292,0.71,240.47,240.41,0.1]
[1758293798476,2.25852694,240.46,240.41,0.1]
[1758293798672,2.96852694,240.46,240.41,0.1]
[1758293799571,2.25852694,240.47,240.41,7.17801904]
[1758293799765,2.96852694,240.47,240.41,2.35852694]
[1758293800088,0.71,240.46,240.41,0.1]
[1758293800570,2.25852694,240.47,240.42,0.66]
[1758293800773,2.96852694,240.47,240.41,0.1]
[1758293801589,2.96852694,240.49,240.42,2.91852694]
[1758293801791,2.25852694,240.49,240.42,2.25852694]
[1758293801971,2.25852694,240.46,240.41,0.1]
[1758293802171,0.71,240.45,240.41,0.1]
[1758293802370,2.25852694,240.46,240.41,0.1]
[1758293802371,0.71,240.44,240.41,0.1]
[1758293802592,2.25852694,240.47,240.41,2.35852694]
[1758293802797,0.71,240.48,240.42,2.91852694]
[1758293803094,0.71,240.48,240.43,2.25852694]
[1758293803879,3.05172695,240.5,240.46,2.25852694]
[1758293803880,1.50320001,240.5,240.46,2.25852694]
[1758293804080,0.79320001,240.5,240.46,2.25852694]
[1758293804493,0.79320001,240.5,240.46,0.66]
[1758293804693,0.79320001,240.5,240.47,2.25852694]
[1758293805374,0.79320001,240.5,240.46,2.25852694]
[1758293805671,0.79320001,240.5,240.46,6.41721372]
[1758293806195,1.50320001,240.5,240.46,2.25852694]
[1758293807204,0.79320001,240.5,240.47,2.25852694]
[1758293807488,0.14216157,240.48,240.38,2.91852694]
[1758293807794,0.71,240.47,240.39,26.0]
[1758293808103,2.96852694,240.47,240.41,0.76]
[1758293808290,2.96852694,240.47,240.41,0.1]
[1758293809201,2.25852694,240.46,240.41,0.1]
[1758293809696,0.71,240.45,240.41,0.1]
[1758293810498,2.25852694,240.46,240.41,0.1]
[1758293810499,2.25852694,240.46,240.41,4.25955292]
[1758293810682,0.71,240.46,240.41,4.25955292]
[1758293811214,0.79320001,240.5,240.45,2.25852694]
[1758293811504,1.50320001,240.5,240.45,2.25852694]
[1758293812481,0.79320001,240.5,240.48,2.25852694]
[1758293813584,0.79320001,240.5,240.49,2.25852694]
[1758293814467,0.79320001,240.5,240.47,4.15835625]
[1758293814695,0.79320001,240.5,240.48,2.25852694]
[1758293815087,0.79320001,240.5,240.48,6.41685695]
[1758293815679,0.79320001,240.5,240.48,4.81833001]
[1758293815879,0.79320001,240.5,240.49,2.25852694]
[1758293816082,0.79320001,240.5,240.49,2.91852694]
[1758293816285,0.79320001,240.5,240.49,16.51412095]
[1758293816684,0.79320001,240.5,240.49,20.672298]
[1758293817275,0.79320001,240.5,240.49,18.41377106]
[1758293817678,0.79320001,240.5,240.49,20.672298]
[1758293819703,0.79320001,240.5,240.49,54.67377106]
[1758293819905,0.79320001,240.5,240.49,56.932298]
[1758293821474,0.79320001,240.5,240.49,54.67377106]
[1758293821676,1.49320001,240.5,240.46,0.41586958]
[1758293821879,0.7,240.49,240.43,15.04213925]
[1758293822114,2.14654524,240.48,240.43,49.83559401]
[1758293822298,0.7,240.47,240.43,49.83559401]
[1758293822502,0.7,240.47,240.43,51.28213925]
[1758293822690,0.7,240.47,240.43,77.28213925]
[1758293822894,0.7,240.47,240.43,75.83559401]
[1758293823095,0.7,240.47,240.43,77.28213925]
[1758293823295,0.7,240.47,240.43,79.99477463]
[1758293823498,0.7,240.47,240.43,53.99477463]
[1758293823881,0.7,240.46,240.43,62.24]
[1758293824086,1.44654524,240.49,240.45,26.0]
[1758293824289,2.23974525,240.5,240.45,26.0]
[1758293824506,1.49320001,240.5,240.46,1.44654524]
[1758293824882,0.7,240.49,240.46,1.44654524]
[1758293825511,0.7,240.48,240.45,26.0]
[1758293825814,0.79320001,240.5,240.45,27.44654524]
[1758293826106,0.79320001,240.5,240.48,1.44654524]
[1758293826311,0.79320001,240.5,240.49,36.24]
[1758293826612,0.79320001,240.5,240.49,37.68654524]
[1758293826810,0.7,240.55,240.49,37.68654524]
[1758293826986,0.7,240.54,240.51,1.44654524]
[1758293827188,0.7,240.53,240.51,1.44654524]
[1758293827509,0.7,240.52,240.5,1.44654524]
[1758293827694,0.7,240.51,240.5,1.44654524]
[1758293830493,0.7,240.51,240.49,36.24]
[1758293830815,0.7,240.5,240.49,36.24]
[1758293831522,0.7,240.5,240.49,36.22]
[1758293832591,0.7,240.5,240.47,4.15846153]
[1758293832793,0.7,240.49,240.48,36.2]
[1758293835305,0.7,240.49,240.45,26.0]
[1758293835615,0.7,240.48,240.46,36.2]
[1758293835801,0.7,240.47,240.45,26.0]
[1758293835999,0.7,240.46,240.45,62.2]
[1758293836587,0.7,240.46,240.41,0.1]
[1758293836796,2.14654524,240.46,240.41,0.1]
[1758293836997,2.14654524,240.46,240.42,36.2]
[1758293837191,0.7,240.45,240.42,36.2]
[1758293837425,0.7,240.44,240.42,36.2]
[1758293837624,0.7,240.43,240.42,36.2]
[1758293838498,0.7,240.43,240.41,36.28]
[1758293838697,0.7,240.42,240.41,36.28]
[1758293838908,0.7,240.42,240.41,0.1]
[1758293839116,0.7,240.42,240.41,36.28]
[1758293839320,0.7,240.42,240.41,0.1]
[1758293841605,0.98432314,240.42,240.41,0.1]
[1758293843125,2.43086838,240.42,240.41,0.1]
[1758293843322,0.98432314,240.42,240.41,0.1]
[1758293843501,2.43086838,240.42,240.41,0.1]
[1758293846911,0.98432314,240.42,240.41,0.1]
[1758293847117,2.43086838,240.42,240.41,0.1]
[1758293847522,2.43086838,240.42,240.41,1e-08]
[1758293847909,28.43086838,240.42,240.41,1e-08]
[1758293848208,31.18188547,240.42,240.41,1e-08]
[1758293848735,30.48188547,240.42,240.41,1e-08]
[1758293848938,31.20188547,240.42,240.41,1e-08]
[1758293850340,28.45086838,240.42,240.41,1e-08]
[1758293851331,31.19435098,240.42,240.41,1e-08]
[1758293851832,60.84514464,240.42,240.41,1e-08]
[1758293852202,59.3985994,240.42,240.41,1e-08]
[1758293852407,60.84514464,240.42,240.41,1e-08]
[1758293853426,96.98514464,240.42,240.41,1e-08]
[1758293854424,60.84514464,240.42,240.41,1e-08]
[1758293854630,45.80300539,240.42,240.41,1e-08]
[1758293854829,47.24955063,240.42,240.41,1e-08]
[1758293855010,83.38955063,240.42,240.41,1e-08]
[1758293856614,47.24955063,240.42,240.41,1e-08]
[1758293856813,80.64606803,240.42,240.41,1e-08]
[1758293857237,44.50606803,240.42,240.41,1e-08]
[1758293857425,80.62606803,240.42,240.41,1e-08]
[1758293858108,53.17952279,240.42,240.41,1e-08]
[1758293858324,17.78606803,240.42,240.41,1e-08]
[1758293858541,16.05519965,240.42,240.41,1e-08]
[1758293858753,53.62174489,240.42,240.41,1e-08]
[1758293859236,52.17519965,240.42,240.41,1e-08]
[1758293859611,53.90606803,240.42,240.41,1e-08]
[1758293862111,52.45952279,240.42,240.41,1e-08]
[1758293862314,54.62606803,240.42,240.41,1e-08]
[1758293863212,53.90606803,240.42,240.41,1e-08]
[1758293864015,70.9595442,240.42,240.41,1e-08]
[1758293864220,1.44654524,240.32,240.31,0.1]
[1758293864440,1.73086838,240.32,240.31,0.1]
[1758293865736,0.28432314,240.32,240.31,0.1]
[1758293865954,1.44654524,240.34,240.31,0.76]
[1758293866139,0.28432314,240.33,240.31,0.76]
[1758293866639,36.08,240.34,240.31,0.76]
[1758293868637,0.28432314,240.37,240.31,1.54654524]
[1758293868850,0.28432314,240.35,240.31,2.20654524]
[1758293869022,0.28432314,240.35,240.31,1.54654524]
[1758293869222,0.28432314,240.35,240.31,0.1]
[1758293870017,0.72,240.34,240.31,0.1]
[1758293870253,0.28432314,240.35,240.31,0.1]
[1758293870254,2.45086838,240.33,240.31,0.1]
[1758293870481,36.36432314,240.32,240.31,0.1]
[1758293870741,0.28432314,240.32,240.31,0.1]
[1758293876341,1.00432314,240.32,240.31,0.1]
[1758293876543,27.00432314,240.32,240.31,0.1]
[1758293876767,31.19157231,240.32,240.31,0.1]
[1758293877446,29.74502707,240.32,240.31,0.1]
[1758293877647,31.19157231,240.32,240.31,0.1]
[1758293878178,45.01244209,240.32,240.31,1e-08]
[1758293878550,46.05336034,240.32,240.31,1e-08]
[1758293879053,49.48752174,240.32,240.31,1e-08]
[1758293879248,82.09336034,240.32,240.31,1e-08]
[1758293879450,85.52752174,240.32,240.31,1e-08]
[1758293880569,82.09336034,240.32,240.31,1e-08]
[1758293881677,82.07336034,240.32,240.31,1e-08]
[1758293881862,46.87226499,240.32,240.31,1e-08]
[1758293882067,82.89226499,240.32,240.31,1e-08]
[1758293882973,0.28432314,240.31,240.25,0.2]
[1758293883179,2.54977303,240.26,240.25,0.2]
[1758293883346,42.00047696,240.26,240.25,1e-08]
[1758293883550,40.00230284,240.26,240.25,1e-08]
[1758293883752,45.60115487,240.26,240.25,1e-08]
[1758293883948,47.26848152,240.26,240.25,1e-08]
[1758293884183,45.00303163,240.26,240.25,1e-08]
[1758293884472,47.26848152,240.26,240.25,1e-08]
[1758293884858,43.93507938,240.26,240.25,1e-08]
[1758293885064,7.91507938,240.26,240.25,1e-08]
[1758293885374,43.91507938,240.26,240.25,1e-08]
[1758293886866,47.28209571,240.26,240.25,1e-08]
[1758293887067,43.91507938,240.26,240.25,1e-08]
[1758293887265,7.91507938,240.26,240.25,1e-08]
[1758293887465,43.91507938,240.26,240.25,1e-08]
[1758293887663,7.91507938,240.26,240.25,1e-08]
[1758293887858,43.91507938,240.26,240.25,1e-08]
[1758293888958,7.91507938,240.26,240.25,1e-08]
[1758293889160,43.91507938,240.26,240.25,1e-08]
[1758293889383,57.51067339,240.26,240.25,1e-08]
[1758293889593,26.28432314,240.24,240.23,1e-08]
[1758293889773,41.27047696,240.24,240.23,1e-08]
[1758293889974,78.05957745,240.24,240.23,1e-08]
[1758293890179,26.0,240.22,240.21,1e-08]
[1758293890377,66.98615382,240.22,240.21,1e-08]
[1758293890565,77.54501431,240.22,240.21,1e-08]
[1758293890764,77.82933745,240.22,240.21,1e-08]
[1758293891068,77.13933745,240.22,240.21,1e-08]
[1758293891265,41.84933745,240.22,240.21,1e-08]
[1758293891570,77.82933745,240.22,240.21,1e-08]
[1758293891966,38.89388756,240.22,240.21,1e-08]
[1758293892286,77.13933745,240.22,240.21,1e-08]
[1758293892665,15.15933745,240.22,240.21,1e-08]
[1758293893020,45.82886049,240.22,240.21,0.66000001]
[1758293893560,9.86886049,240.22,240.21,1e-08]
[1758293893878,12.13431038,240.22,240.21,1e-08]
[1758293894174,10.15318363,240.22,240.21,1e-08]
[1758293894376,10.15318363,240.22,240.21,0.66000001]
[1758293894560,46.11318363,240.22,240.21,0.66000001]
[1758293894756,46.11318363,240.22,240.21,1e-08]
[1758293895191,45.82886049,240.22,240.21,0.66000001]
[1758293895688,9.86886049,240.22,240.21,0.66000001]
[1758293895979,45.82886049,240.22,240.21,0.66000001]
[1758293897091,49.06863352,240.22,240.21,1e-08]
[1758293897267,51.80160717,240.22,240.21,1e-08]
[1758293898909,91.39720118,240.22,240.21,1e-08]
[1758293900379,65.39720118,240.22,240.21,1e-08]
[1758293900576,0.28432314,240.18,240.11,0.1]
[1758293900774,2.26544989,240.12,240.11,0.1]
[1758293901100,35.92,240.12,240.11,0.76]
[1758293901771,35.92,240.13,240.11,0.76]
[1758293902105,35.92,240.13,240.12,0.66]
[1758293903083,35.92,240.13,240.11,0.1]
[1758293903793,38.18544989,240.13,240.11,0.76]
[1758293904000,35.92,240.13,240.11,0.76]
[1758293904903,38.18544989,240.13,240.11,0.1]
[1758293905077,35.92,240.13,240.11,0.1]
[1758293905272,2.26544989,240.12,240.11,0.1]
[1758293906281,2.76544989,240.12,240.11,0.1]
[1758293907180,0.5,240.12,240.11,0.1]
[1758293907501,2.76544989,240.12,240.11,0.1]
[1758293908703,38.66544989,240.12,240.11,0.1]
[1758293908901,36.4,240.12,240.11,0.1]
[1758293910003,39.36544989,240.12,240.11,0.1]
[1758293910183,3.46544989,240.12,240.11,0.1]
[1758293910388,39.34544989,240.12,240.11,0.1]
[1758293910589,36.38,240.12,240.11,0.1]
[1758293910788,38.64544989,240.12,240.11,0.1]
[1758293911300,2.76544989,240.12,240.11,0.1]
[1758293911500,0.5,240.12,240.11,0.76]
[1758293911676,0.5,240.12,240.11,0.1]
[1758293912490,2.76544989,240.12,240.11,0.1]
[1758293913705,38.64544989,240.12,240.11,0.1]
[1758293914006,36.38,240.12,240.11,0.1]
[1758293914391,39.34544989,240.12,240.11,0.1]
[1758293914586,42.07742962,240.12,240.11,0.1]
[1758293915201,40.09630287,240.12,240.11,0.1]
[1758293915413,2.26544989,240.07,240.02,0.66]
[1758293915708,2.26544989,240.07,240.03,0.66]
[1758293915887,38.12544989,240.08,240.03,0.66]
[1758293916087,38.12544989,240.08,240.04,0.66]
[1758293916289,2.26544989,240.07,240.02,0.66]
[1758293916588,2.26544989,240.06,240.02,0.66]
[1758293917090,2.96544989,240.05,240.01,0.1]
[1758293917292,38.12544989,240.04,240.01,0.1]
[1758293917506,35.86,240.04,240.01,0.1]
[1758293917707,38.12544989,240.04,240.01,0.1]
[1758293917990,35.86,240.04,240.01,0.1]
[1758293918411,36.56,240.04,240.01,0.1]
[1758293918716,2.26544989,240.03,240.01,0.1]
[1758293918887,0.98432314,240.06,240.01,0.1]
[1758293919209,12.96952306,240.05,240.01,0.1]
[1758293919392,0.28432314,240.03,240.01,0.1]
[1758293919594,2.73267528,240.03,240.01,0.1]
[1758293919791,38.10544989,240.02,240.01,0.1]
[1758293920019,40.83812517,240.02,240.01,0.1]
[1758293920195,2.73267528,240.02,240.01,0.1]
[1758293920398,38.10544989,240.02,240.01,0.1]
[1758293921095,38.80544989,240.02,240.01,0.1]
[1758293921413,41.53876913,240.02,240.01,0.1]
[1758293921586,40.83876913,240.02,240.01,0.1]
[1758293921787,41.53876913,240.02,240.01,0.1]
[1758293921998,39.27331924,240.02,240.01,0.1]
[1758293922197,41.53876913,240.02,240.01,0.1]
[1758293922412,5.69876913,240.02,240.01,0.1]
[1758293922610,38.10544989,240.02,240.01,0.1]
[1758293922908,39.27331924,240.02,240.01,0.1]
[1758293923110,41.53876913,240.02,240.01,0.1]
[1758293923319,38.57331924,240.02,240.01,0.1]
[1758293923913,39.27331924,240.02,240.01,0.1]
[1758293924088,42.63996911,240.02,240.01,0.1]
[1758293924287,37.64119998,240.02,240.01,0.1]
[1758293924591,42.63996758,240.02,240.01,0.1]
[1758293924787,6.79996758,240.02,240.01,0.1]
[1758293925018,37.64119998,240.02,240.01,0.1]
[1758293925199,42.63996758,240.02,240.01,0.1]
[1758293925403,39.20664987,240.02,240.01,0.1]
[1758293925605,39.18664987,240.02,240.01,0.1]
[1758293926197,1.10119998,240.02,240.01,0.76]
[1758293926496,1.10119998,240.02,240.01,0.1]
[1758293927020,3.36664987,240.02,240.01,0.1]
[1758293927327,1.10119998,240.02,240.01,0.1]
[1758293927810,1.10119998,240.02,240.01,1e-08]
[1758293927811,40.17097301,240.02,240.01,1e-08]
[1758293928007,40.63840577,240.02,240.01,1e-08]
[1758293928209,42.90385566,240.02,239.91,0.1]
[1758293928418,2.26544989,239.95,239.91,0.1]
[1758293928596,2.26544989,239.92,239.91,0.1]
[1758293928802,2.26544989,239.92,239.81,10.52480102]
[1758293928803,2.26544989,239.87,239.81,0.1]
[1758293929325,35.82,239.87,239.81,0.1]
[1758293929505,2.73288265,239.87,239.82,2.92544989]
[1758293929820,35.82,239.88,239.82,2.92544989]
[1758293930034,2.96544989,239.87,239.81,0.1]
[1758293930209,2.26544989,239.87,239.81,0.1]
[1758293930832,12.96549171,239.89,239.83,4.16960733]
[1758293930833,12.26549171,239.89,239.83,4.16960733]
[1758293931130,12.26549171,239.89,239.81,0.1]
[1758293931131,2.26544989,239.84,239.81,0.1]
[1758293931307,2.26544989,239.83,239.81,0.1]
[1758293931623,2.26544989,239.82,239.81,0.1]
[1758293932216,12.78764846,239.86,239.81,0.1]
[1758293932403,8.23344846,239.82,239.81,0.1]
[1758293932800,11.19889835,239.82,239.81,0.1]
[1758293933413,11.48322149,239.82,239.81,0.1]
[1758293933629,9.2177716,239.82,239.81,0.1]
[1758293933806,11.48322149,239.82,239.81,0.1]
[1758293934528,11.19889835,239.82,239.81,0.1]
[1758293935606,10.49889835,239.82,239.81,0.1]
[1758293935930,11.33105992,239.82,239.81,0.1]
[1758293936231,8.23344846,239.82,239.81,0.1]
[1758293936727,10.49889835,239.82,239.81,0.1]
[1758293936933,8.23344846,239.82,239.81,0.1]
[1758293940028,8.23344846,239.82,239.81,0.76]
[1758293940239,8.23344846,239.82,239.81,3.02544989]
[1758293940546,8.23344846,239.82,239.81,0.1]
[1758293941142,8.23344846,239.82,239.81,16.6210439]
[1758293941314,8.23344846,239.82,239.81,18.88649379]
[1758293941315,7.57344846,239.82,239.81,18.88649379]
[1758293941521,0.72,239.98,239.85,13.59559401]
[1758293941726,0.72,239.98,239.91,2.26544989]
[1758293941927,0.72,239.98,239.92,2.26544989]
[1758293942240,0.72,240.01,239.93,2.26544989]
[1758293942545,2.26544989,240.0,239.93,2.26544989]
[1758293943246,2.98544989,239.99,239.92,2.26544989]
[1758293943416,0.72,239.99,239.92,2.26544989]
[1758293943613,12.1,240.02,239.93,2.26544989]
[1758293943810,12.1,240.02,239.9,4.16836858]
[1758293943811,1.4528022,240.01,239.94,1.4528022]
[1758293944037,1.4528022,240.01,239.95,1.4528022]
[1758293944632,2.1728022,240.02,239.95,1.4528022]
[1758293944832,0.72,240.02,239.89,13.59559401]
[1758293945033,0.72,240.02,239.95,1.4528022]
[1758293945230,1.4528022,240.01,239.95,1.4528022]
[1758293945632,1.4528022,239.99,239.88,30.16875104]
[1758293945936,2.1728022,239.99,239.92,1.4528022]